Cogmind - Beta 15 @@@ ROGUE MODE // 2025.07.17 @ 16:39:15 Player: Selene Result: Destroyed by G-50 Soldier with Heavy Laser Performance ------------- Evolutions (5) 2500 Regions Visited (13) 2600 Robots Destroyed (87) 435 Value Destroyed (5091) 5091 Prototype IDs (29) 580 Alien Tech Used (0) 0 Bonus (2781) 2781 TOTAL SCORE: 13987 Bonus ------- High Alert Combat Kills 404 Follower Combat Kills 277 Entered Garrisons 600 Used RIF Installer 1500 Cogmind --------- Core Integrity 0/1000 Matter 7/300 Energy 325/325 System Corruption 19% Temperature Cool (9) Movement Treading (160) Location -5/Garrison Parts ------- > --- POWER (1) -------- Reinforced Antimatter Reactor > --- PROPULSION (4) --- Improved Medium Treads > --- UTILITY (10) ----- Improved Cooling System Spectral Analyzer Advanced Targeting Computer Improved Target Analyzer Relay Coupler [Swarmer] (36) > --- WEAPON (2) ------- (None) > --- INVENTORY (5) ---- ECM Suite Relay Coupler [Sentry] (31) Peak State ------------ > --- POWER ------------ Reinforced Antimatter Reactor > --- PROPULSION ------- Armored Heavy Treads Armored Heavy Treads > --- UTILITY ---------- High-capacity Storage Unit Spectral Analyzer Experimental Terrain Scan Processor Advanced Targeting Computer Improved Target Analyzer Improved Heavy Armor Plating Relay Coupler [NC] Relay Coupler [Swarmer] Relay Coupler [Hunter] > --- WEAPON ----------- Gauss Rifle KE Penetrator > --- INVENTORY -------- Reinforced Deuterium Engine Micro Fission Core Improved Medium Treads Improved Medium Treads Improved Cooling System Improved Terrain Scanner 0b10 Decoder Chip [Scout] ECM Suite Phase Shifter Layered Medium Armor Plating Relay Coupler [NC] Relay Coupler [Swarmer] Relay Coupler [Grunt] Relay Coupler [Brawler] Relay Coupler [Sentry] Relay Coupler [Specialist] Thermic Laser Cooled Particle Cannon Tiamat Missile Launcher Makeshift Sword [Rating: 102] Favorites ----------- Power Heavy Deuterium Engine Engine Heavy Deuterium Engine Power Core Fission Core Reactor Reinforced Antimatter Reactor Propulsion Flexi-carbon Leg Treads Light Treads Leg Flexi-carbon Leg Wheel Compact Wheel Hover Unit Antigrav System Utility High-capacity Storage Unit Device Improved Sensor Array Storage High-capacity Storage Unit Processor Improved Signal Interpreter Hackware Relay Coupler [Sentry] Protection Improved Light Armor Plating Weapon Light Assault Rifle Energy Gun Thermic Laser Energy Cannon Heavy Plasma Cannon Ballistic Gun Light Assault Rifle Launcher Grenade Launcher Special Weapon Remote Datajack Impact Weapon Hammer Slashing Weapon Makeshift Sword Piercing Weapon Heavy Pick Special Melee Weapon Datajack Build | -11 -10 -10 -8 -8 -7 -7 -6 -6 -6 -6 -5 -5 -5 ------- Run | Yrd Mat Sub Mat Gar Fac Gar Fac Low Low Zio Pro Fac Gar Slots Evolved 10 | . . . 4 . 2 . 2 . . . . 2 . Power . | . . . . . . . . . . . . . . Propulsion 2 | . . . 1 . 1 . . . . . . . . Utility 8 | . . . 3 . 1 . 2 . . . . 2 . Weapon . | . . . . . . . . . . . . . . Parts Attached 150 | 7 14 7 3 16 13 22 16 2 1 6 4 7 32 Power 17 | 1 1 2 . 4 . 1 2 . . . 2 . 4 Engine 8 | 1 1 2 . . . 1 1 . . . 1 . 1 Core 8 | . . . . 4 . . 1 . . . 1 . 2 Reactor 1 | . . . . . . . . . . . . . 1 Propulsion 32 | 2 3 2 . 3 2 9 2 . . 1 . . 8 Treads 7 | . 2 1 . . . . . . . . . . 4 Leg 20 | . . 1 . 3 2 9 2 . . 1 . . 2 Wheel 3 | 2 1 . . . . . . . . . . . . Hover 2 | . . . . . . . . . . . . . 2 Flight . | . . . . . . . . . . . . . . Utility 67 | 2 4 2 2 4 7 9 7 1 1 5 1 6 16 Device 21 | 1 2 1 . 2 3 1 2 . . 1 . 3 5 Storage 3 | 1 2 . . . . . . . . . . . . Processor 11 | . . . . . . . 1 . 1 4 . 2 3 Hackware 22 | . . . 1 1 3 7 3 1 . . 1 1 4 Protection 10 | . . 1 1 1 1 1 1 . . . . . 4 Artifact . | . . . . . . . . . . . . . . Weapon 34 | 2 6 1 1 5 4 3 5 1 . . 1 1 4 Energy Gun 11 | . . . 1 4 2 2 2 . . . . . . Energy Cannon 2 | . . . . . . . 1 . . . 1 . . Ballistic Gun 9 | 2 2 . . 1 . . . . . . . . 4 Ballistic Cannon . | . . . . . . . . . . . . . . Launcher 5 | . 2 1 . . . 1 . . . . . 1 . Special Weapon 3 | . . . . . 2 . 1 . . . . . . Impact Weapon 1 | . 1 . . . . . . . . . . . . Slashing Weapon 1 | . . . . . . . . 1 . . . . . Piercing Weapon 1 | . . . . . . . 1 . . . . . . Special Melee Weapon 1 | . 1 . . . . . . . . . . . . Unidentified Prototypes 11 | . . . . . 1 . 3 . . 4 . 3 . Parts Lost 61 | . 2 1 . 9 . 6 3 . . . 2 2 36 Power 8 | . . . . 3 . 1 1 . . . 1 . 2 Propulsion 18 | . 1 1 . 1 . 2 1 . . . . . 12 Utility 28 | . . . . 4 . 3 1 . . . 1 2 17 Weapon 7 | . 1 . . 1 . . . . . . . . 5 Highest Loss Streak 14 | . 1 1 . 2 . 2 2 . . . 2 1 14 To Critical Strikes . | . . . . . . . . . . . . . . Average Backups 18 | 3 11 19 18 18 18 18 19 19 20 19 19 19 16 Power 1 | . 1 2 2 . 1 . . 1 1 1 1 2 1 Propulsion 2 | 1 1 3 5 2 2 1 2 2 2 2 2 1 . Utility 9 | . 3 7 4 8 10 11 10 9 10 10 11 10 9 Weapon 4 | . 3 4 5 5 4 3 5 5 5 5 5 5 4 Tool/Special . | . . . . . . . . . . . . . . Unused Backups 73 | 1 7 4 . 11 6 11 5 1 . 4 1 4 18 Power 7 | 1 . . . . 1 1 . . . . . 1 3 Propulsion 14 | . 2 . . 6 3 1 . . . . . . 2 Utility 36 | . 3 4 . 3 1 8 3 1 . 3 . 1 9 Weapon 15 | . 2 . . 2 1 . 2 . . 1 1 2 4 Tool/Special 1 | . . . . . . 1 . . . . . . . Average Slot Usage (%) 94 | . 99 96 69 89 91 94 99 99 100 100 99 98 83 Engine 5 | . 14 13 7 . . 5 4 6 6 6 5 5 1 Core 1 | . . . . 7 7 1 1 . . . . . . Treads 5 | . 21 19 . 1 . . . . . . . . 5 Leg 16 | . . 3 7 14 21 24 25 26 26 26 26 23 4 Device 10 | . 14 15 15 21 21 6 9 5 6 5 5 7 3 Storage 7 | . 14 13 7 7 7 7 6 6 6 6 6 5 4 Processor 7 | . . . . . . . 5 6 11 19 26 28 24 Hackware 14 | . . . 7 7 9 25 22 26 21 13 11 13 16 Protection 5 | . . 3 7 10 11 6 6 6 6 6 . . 3 Energy Gun 4 | . . . 3 9 9 11 4 3 6 . . . . Ballistic Gun 6 | . 26 24 11 1 . . . . . . . . 5 Special Weapon 1 | . . . . . 2 2 4 2 . 6 6 4 . Slashing Weapon 1 | . . . . . . . . 5 6 6 5 5 2 Peak Build Rating 102 | 7 10 30 36 51 66 65 67 67 69 82 82 95 102 Average Rating 54 | 5 8 15 33 41 63 57 65 66 68 74 80 87 85 On Entrance 50 | . 7 9 30 34 51 63 60 66 67 67 81 81 87 Naked Turns . | . . . . . . . . . . . . . . Heaviest Build 90 | 11 47 54 55 67 73 68 66 61 61 60 63 57 90 Greatest Support 120 | 32 40 55 55 65 86 86 76 76 76 76 72 76 120 Greatest Overweight (x) 5 | . 1 1 . 1 . 1 . . . . . . 5 Average Overweight (x) . | . . . . . . . . . . . . . . Largest Inventory Capacity 20 | 8 20 20 20 20 20 20 20 20 20 20 20 20 20 Average Capacity 18 | 6 13 20 20 20 20 20 20 20 20 20 20 20 16 Most Carried 20 | 7 19 20 20 20 20 20 20 20 20 20 20 20 20 Average Carried 18 | 3 11 19 19 19 19 19 19 19 20 19 19 19 16 Final Capacity 20 | 8 20 20 20 20 20 20 20 20 20 20 20 20 5 Final Carried 20 | 6 19 20 20 20 20 20 19 20 19 20 20 20 2 Class Distribution -------------------- 56% | Bothacker-Mutant 24% | Mutant 15% | Scavenger-Mutant Dominant Class ---------------- Mutant | -10/Materials Mutant | -10/Subcaves Mutant | -8/Materials Scavenger-Mutant | -8/Garrison Bothacker-Mutant | -7/Factory Bothacker-Mutant | -7/Garrison Bothacker-Mutant | -6/Factory Bothacker-Mutant | -6/Lower Caves Bothacker-Mutant | -6/Lower Caves Bothacker-Mutant | -6/Zion Bothacker-Mutant | -5/Proximity Caves Bothacker-Assassin | -5/Factory Scavenger-Mutant | -5/Garrison Resources | -11 -10 -10 -8 -8 -7 -7 -6 -6 -6 -6 -5 -5 -5 ----------- Run | Yrd Mat Sub Mat Gar Fac Gar Fac Low Low Zio Pro Fac Gar Matter Collected 3931 | 252 494 118 . 666 204 699 281 130 53 113 127 . 794 Remotely . | . . . . . . . . . . . . . . Salvage Created 3724 | 19 595 130 . 726 308 650 330 62 40 . 30 . 834 Parts 209 | 4 41 4 . 51 15 31 21 3 1 . 2 . 36 Haulers Intercepted 3 | . 2 . . . . . 1 . . . . . . Recyclers Shooed 4 | 1 3 . . . . . . . . . . . . Parts Field Recycled . | . . . . . . . . . . . . . . Retrieved Matter . | . . . . . . . . . . . . . . Parts Self-Destructed 19 | . . 2 . . . . . 2 1 . 14 . . Prevented . | . . . . . . . . . . . . . . Kills | -11 -10 -10 -8 -8 -7 -7 -6 -6 -6 -6 -5 -5 -5 ------- Run | Yrd Mat Sub Mat Gar Fac Gar Fac Low Low Zio Pro Fac Gar Combat Hostiles Destroyed 73 | . 13 2 . 18 7 17 4 1 . . 1 . 10 Melee 8 | . . . . 1 . . 3 1 . . 1 . 2 Guns 46 | . 7 . . 14 7 11 . . . . . . 7 AOE 16 | . 6 2 . 2 . 5 . . . . . . 1 Classes Destroyed 19 | 1 7 2 . 4 2 . . . 1 . . . 2 Worker 1 | . 1 . . . . . . . . . . . . Tunneler 1 | 1 . . . . . . . . . . . . . Hauler 3 | . 2 . . . . . 1 . . . . . . Recycler 2 | . 2 . . . . . . . . . . . . Minesweeper 1 | . . . . . . . . . 1 . . . . Operator 4 | . 2 . . . . 1 1 . . . . . . Watcher 2 | . 2 . . . . . . . . . . . . Swarmer 13 | . 6 . . 3 . 3 . . . . 1 . . Cutter 2 | . . . . 2 . . . . . . . . . Grunt 28 | . 7 . . 5 5 7 . 1 . . . . 3 Brawler 1 | . . . . . . . . . . . . . 1 Sentry 7 | . . . . 6 . 1 . . . . . . . Demolisher 1 | . . . . 1 . . . . . . . . . Specialist 1 | . . . . 1 . . . . . . . . . Hunter 3 | . . . . . 1 . 1 . . . . . 1 Programmer 13 | . . . . . 1 6 3 . . . . . 3 Behemoth 2 | . . . . . . . . . . . . . 2 Cobbler 1 | . . 1 . . . . . . . . . . . Subdweller 2 | . . 2 . . . . . . . . . . . Best Kill Streak 4 | 1 4 2 . 3 3 3 1 1 1 . 1 . 3 Combat Bots Only 3 | . 3 2 . 3 3 3 1 1 . . 1 . 3 Max Kills in Single Turn 3 | 1 2 1 . 2 1 3 1 1 1 . 1 . 1 Gunslinging 1 | . . . . 1 . . . . . . . . . Exploded 3 | . 2 1 . 1 . 3 . . . . . . 1 Melee 1 | . . . . 1 . . 1 1 . . 1 . 1 Uniques/NPCs Destroyed . | . . . . . . . . . . . . . . Combat | -11 -10 -10 -8 -8 -7 -7 -6 -6 -6 -6 -5 -5 -5 -------- Run | Yrd Mat Sub Mat Gar Fac Gar Fac Low Low Zio Pro Fac Gar Hostile Shots Fired 821 | . 78 10 . 129 44 125 72 2 . . 22 4 335 Missed 226 | . 21 4 . 35 19 36 22 1 . . 7 . 81 Hits 595 | . 57 6 . 94 25 89 50 1 . . 15 4 254 Melee 6 | . . . . 1 . 1 . . . . . . 4 Projectile 589 | . 57 6 . 93 25 88 50 1 . . 15 4 250 AOE 10 | . . . . 10 . . . . . . . . . Critical Strikes 24 | . 1 . . 3 . 3 2 . . . . . 15 Part Disruptions 1 | . . . . . . 1 . . . . . . . Damage Taken 10974 | . 658 132 . 1462 335 1342 627 18 . . 293 116 5991 Core 1579 | . 160 21 . 194 12 127 34 . . . 27 . 1004 Absorbed by Shields 174 | . 87 . . 87 . . . . . . . . . Reduced by Siege Mode 257 | . . . . . . . . . . . . . 257 Ignored by Resistances 93 | . . . . 8 26 . . . . . . . 59 Regen/Repaired (Parts) 287 | . . . . . . . . . . . . 287 . Core Remaining (%) 72 | 100 . 27 . 64 . 80 . . . . 92 . . Volleys Fired 430 | 3 93 13 3 59 29 131 20 7 . . 10 6 56 Largest 2 | 2 2 2 2 2 2 2 1 1 . . 1 1 2 Hottest 154 | 40 40 40 76 150 154 145 85 85 . . 90 5 68 Shots Fired 674 | 6 174 25 6 116 40 168 20 9 1 . 10 6 93 Gun 589 | 6 165 22 6 114 32 147 8 3 1 . . . 85 Cannon 4 | . . . . . . . . . . . 4 . . Launcher 28 | . 9 3 . 2 . 6 . . . . . . 8 Special 53 | . . . . . 8 15 12 6 . . 6 6 . Kinetic 301 | 6 165 22 4 19 . . . . . . . . 85 Thermal 287 | . . . 2 95 32 147 3 3 1 . 4 . . Explosive 28 | . 9 3 . 2 . 6 . . . . . . 8 Electromagnetic 5 | . . . . . . . 5 . . . . . . Robot Hit Streak 13 | 1 13 7 1 11 8 10 11 12 5 . 2 2 11 Robot Miss Streak 7 | 2 3 2 2 4 2 7 3 1 . . 3 4 1 Penetration Max 1 | . . . . . . . . . . . . . 1 Secondary Targets 4 | . . . . 1 . 2 . . . . . . 1 Max Gunslinging Chain 1 | . . . . 1 . 1 . . . . . . 1 Shots Hit Robots 474 | 2 116 18 2 79 28 72 27 7 3 . 4 4 112 Core Hits 189 | 2 48 8 . 35 12 35 9 1 2 . 1 . 36 Critical Kills 4 | . 1 . . 1 . . . . . . . . 2 Critical Parts Destroyed 5 | . . . . 1 . . . . . . . . 4 Critical Strikes 26 | . 1 . . 6 1 4 1 . . . . . 13 Burn 9 | . . . . 4 1 4 . . . . . . . Destroy 8 | . 1 . . . . . . . . . . . 7 Smash 2 | . . . . 2 . . . . . . . . . Sever 6 | . . . . . . . . . . . . . 6 Impale 1 | . . . . . . . 1 . . . . . . Melee Attacks 204 | . 2 4 . 50 7 10 16 4 3 1 4 8 95 Impact 72 | . 2 4 . 50 6 10 . . . . . . . Slashing 115 | . . . . . . . . 4 3 1 4 8 95 Piercing 16 | . . . . . . . 16 . . . . . . Sneak Attacks 9 | . . . . 2 . . 2 2 2 . . . 1 Combat Hostiles 5 | . . . . 2 . . . 2 . . . . 1 Follow-up Attacks . | . . . . . . . . . . . . . . Damage Inflicted 10541 | 16 1312 315 30 1235 395 1851 614 146 159 . 77 . 4391 Guns 5320 | 16 920 121 30 950 395 1415 150 . 18 . . . 1305 Cannons . | . . . . . . . . . . . . . . Explosions 1662 | . 392 194 . 77 . 436 . . . . . . 563 Melee 3554 | . . . . 208 . . 464 146 141 . 77 . 2518 Ramming 5 | . . . . . . . . . . . . . 5 Kinetic 2452 | 16 920 121 . 90 . . . . . . . . 1305 Thermal 2762 | . . . 30 860 395 1415 44 . 18 . . . . Explosive 1662 | . 392 194 . 77 . 436 . . . . . . 563 Electromagnetic 106 | . . . . . . . 106 . . . . . . Impact 208 | . . . . 208 . . . . . . . . . Slashing 2882 | . . . . . . . . 146 141 . 77 . 2518 Piercing 464 | . . . . . . . 464 . . . . . . Highest Corruption 19 | . 1 1 . . . 3 2 2 2 2 . . 19 Average Corruption 4 | . 1 1 . . . 1 1 2 2 2 . . 15 Corruption Purged . | . . . . . . . . . . . . . . Corruption Blocked . | . . . . . . . . . . . . . . Effects 148 | . 11 14 . . . 17 10 13 12 . . . 71 Message Errors 34 | . 1 3 . . . 5 1 2 3 . . . 19 Matter Fused 24 | . 2 1 . . . 2 1 1 2 . . . 15 Heat Flow Errors 25 | . 2 4 . . . 2 2 3 2 . . . 10 Energy Discharges 18 | . 2 2 . . . 5 2 2 3 . . . 2 Parts Rejected 1 | . 1 . . . . . . . . . . . . Parts Fused 2 | . . . . . . . 1 . . . . . 1 Data Loss (minor) 17 | . 1 1 . . . 1 1 3 1 . . . 9 Data Loss (major) 5 | . . . . . . 1 . . . . . . 4 Misfires 10 | . . 2 . . . 1 . 2 1 . . . 4 Alerts 3 | . . 1 . . . . 2 . . . . . . Misdirections 2 | . . . . . . . . . . . . . 2 Weapon Failures 7 | . 2 . . . . . . . . . . . 5 Overload Shots 15 | . . . . . . 15 . . . . . . . Effects 1 | . . . . . . 1 . . . . . . . Heat Surge 1 | . . . . . . 1 . . . . . . . Overflow Damage 268 | . 15 . . 27 . 20 11 . 35 . . . 160 Projectiles . | . . . . . . . . . . . . . . Explosions 51 | . 15 . . . . 20 . . . . . . 16 Melee 217 | . . . . 27 . . 11 . 35 . . . 144 Knockbacks . | . . . . . . . . . . . . . . Impact . | . . . . . . . . . . . . . . Kinetic . | . . . . . . . . . . . . . . Secondary . | . . . . . . . . . . . . . . Self-Inflicted Damage 169 | . 72 . . 65 . 32 . . . . . . . Shots 7 | . 3 . . 2 . 2 . . . . . . . Rammed 2 | . . . . . . . . . . . . . 2 Targets Rammed 4 | . . . . . . . . . . . . . 4 Kicked 2 | . . . . . . . . . . . . . 2 Crushed . | . . . . . . . . . . . . . . Highest Temperature 357 | . 152 147 34 267 288 339 270 212 224 . 120 . 357 Average Temperature 84 | . 25 66 21 60 92 101 128 76 81 . 61 . 117 Received Heat Transfer 2766 | . 244 9 . 357 135 276 . 9 . . . 9 1727 Effects 4 | . . . . . . 4 . . . . . . . Energy Bleed 1 | . . . . . . 1 . . . . . . . Interference 3 | . . . . . . 3 . . . . . . . Siege Activations 3 | . . . . . . . . . . . . . 3 Total Turns 89 | . . . . . . . . . . . . . 89 Longest Duration 32 | . . . . . . . . . . . . . 32 Martial Activations . | . . . . . . . . . . . . . . Shielding Activations . | . . . . . . . . . . . . . . Robots Disrupted . | . . . . . . . . . . . . . . Combat Hostiles . | . . . . . . . . . . . . . . Robots Corrupted 2 | . . . . 1 . . 1 . . . . . . Combat Hostiles 2 | . . . . 1 . . 1 . . . . . . Parts Fried 2 | . . . . . . . 2 . . . . . . Impact Corruptions 2 | . . . . 2 . . . . . . . . . Robots Melted 1 | . . . . . . 1 . . . . . . . Combat Hostiles 1 | . . . . . . 1 . . . . . . . Parts Melted 21 | . . . . 5 3 12 . 1 . . . . . Heat Transferred 6612 | . . . 74 2423 916 3049 100 . 50 . . . . Parts Sabotaged . | . . . . . . . . . . . . . . Parts Stolen . | . . . . . . . . . . . . . . Parts Stripped . | . . . . . . . . . . . . . . Power Chain Reactions . | . . . . . . . . . . . . . . Alert | -11 -10 -10 -8 -8 -7 -7 -6 -6 -6 -6 -5 -5 -5 ------- Run | Yrd Mat Sub Mat Gar Fac Gar Fac Low Low Zio Pro Fac Gar Maximum Alert Level 4 | . . . . 3 2 4 2 . . . . 1 2 Low Security (%) 41 | 100 100 . 100 25 . . 57 . . . . 43 55 Level 1 25 | . . . . 29 56 7 33 . . . . 56 41 Level 2 16 | . . . . 10 43 46 8 . . . . . 3 Level 3 14 | . . . . 34 . 38 . . . . . . . Level 4 1 | . . . . . . 6 . . . . . . . Level 5 . | . . . . . . . . . . . . . . High Security . | . . . . . . . . . . . . . . Max Security . | . . . . . . . . . . . . . . Peak Influence 1143 | 5 152 . . 877 480 1143 462 . . . . 300 452 Initial 462 | . . . . 1 459 247 462 . . . . 300 83 Average 336 | . 75 . . 426 402 681 194 . . . . 213 227 Influence Increases 4512 | 5 567 . 3 966 245 1263 189 23 5 . 129 373 744 Destroy 0b10 Robot/C 1600 | . 260 . . 360 160 440 80 20 . . 80 . 200 Destroy 0b10 Robot/NC 100 | 5 40 . . . 5 5 10 . 5 . 10 . 20 Destroy Leader 240 | . 58 . . 20 30 40 42 . . . 20 . 30 Allied During Kill 38 | . . . . . 8 20 2 3 . . 4 . 1 Trap Triggered on 0b10 10 | . . . . 10 . . . . . . . . . Successful Hack 208 | . 52 . 3 38 37 28 10 . . . . 40 . Select Force Hacks 30 | . 30 . . . . . . . . . . . . Disable Machine 120 | . 60 . . . . 15 30 . . . . 15 . Anti-Garrison Action 1100 | . . . . 350 . 500 . . . . . . 250 Destroy Structure 466 | . 37 . . 113 5 170 . . . . . 18 123 Advance Influence 300 | . . . . . . . . . . . . 300 . Partial Spotted 30 | . . . . 30 . . . . . . . . . Lose Combat Pursuer 270 | . 30 . . 45 . 45 15 . . . 15 . 120 Influence Decreases 4085 | 5 502 65 . 92 768 737 1018 74 5 . 129 254 436 Entered New Map 1033 | . . 32 . 2 418 107 418 20 . . . . 36 Time Decay 1737 | 5 482 33 . . 310 . 550 54 5 . 84 214 . Lost Part 600 | . 20 . . 90 . 60 30 . . . 20 20 360 Lost Ally 165 | . . . . . 40 20 20 . . . 25 20 40 Purge Threat 550 | . . . . . . 550 . . . . . . . Squads Dispatched 12 | . 2 . . . 3 . 6 . . . . 1 . Investigation 2 | . 1 . . . 1 . . . . . . . . Extermination 7 | . . . . . 2 . 4 . . . . 1 . Reinforcement 3 | . 1 . . . . . 2 . . . . . . Assault . | . . . . . . . . . . . . . . Garrison . | . . . . . . . . . . . . . . Intercept . | . . . . . . . . . . . . . . Searches Triggered . | . . . . . . . . . . . . . . Construction Impeded . | . . . . . . . . . . . . . . Haulers Reinforced . | . . . . . . . . . . . . . . Active Scanning Responses . | . . . . . . . . . . . . . . Cargo Convoy Interrupts 1 | . . . . . . . 1 . . . . . . Stealth | -11 -10 -10 -8 -8 -7 -7 -6 -6 -6 -6 -5 -5 -5 --------- Run | Yrd Mat Sub Mat Gar Fac Gar Fac Low Low Zio Pro Fac Gar Distress Signals 2 | . . . . . . . 1 . . . 1 . . Communications Jammed . | . . . . . . . . . . . . . . Distress Signals . | . . . . . . . . . . . . . . Times Spotted 137 | . 27 2 3 20 10 25 14 3 . . 10 4 19 Peak Tracking Total 6 | . 4 2 2 3 3 4 6 3 . . 5 2 6 Tactical Retreats 12 | . 1 . . 2 . 1 1 . . . 1 . 6 Traps | -11 -10 -10 -8 -8 -7 -7 -6 -6 -6 -6 -5 -5 -5 ------- Run | Yrd Mat Sub Mat Gar Fac Gar Fac Low Low Zio Pro Fac Gar Traps Triggered 13 | . 3 . . 3 1 4 1 . . . . . 1 Indirectly . | . . . . . . . . . . . . . . Trap Hack Attempts 65 | . 51 . . 14 . . . . . . . . . Triggered . | . . . . . . . . . . . . . . Disarmed 3 | . 2 . . 1 . . . . . . . . . Reprogrammed 2 | . . . . 2 . . . . . . . . . Reused 1 | . . . . 1 . . . . . . . . . Traps Extracted . | . . . . . . . . . . . . . . Installed . | . . . . . . . . . . . . . . Triggered 1 | . . . . 1 . . . . . . . . . Machines | -11 -10 -10 -8 -8 -7 -7 -6 -6 -6 -6 -5 -5 -5 ---------- Run | Yrd Mat Sub Mat Gar Fac Gar Fac Low Low Zio Pro Fac Gar Machines Disabled 20 | . 4 1 . 3 . 7 2 . . . . 1 2 Max in Single Turn 2 | . 1 1 . 1 . 2 1 . . . . . 1 Garrison Relay 7 | . . . . 3 . 3 . . . . . . 1 Phase Generator 1 | . . . . . . 1 . . . . . . . Machines Repaired . | . . . . . . . . . . . . . . Machines Dismantled . | . . . . . . . . . . . . . . Machines Sabotaged . | . . . . . . . . . . . . . . Overloaded Fab Kills . | . . . . . . . . . . . . . . Hacking | -11 -10 -10 -8 -8 -7 -7 -6 -6 -6 -6 -5 -5 -5 --------- Run | Yrd Mat Sub Mat Gar Fac Gar Fac Low Low Zio Pro Fac Gar Machines Accessed 38 | . 9 2 1 5 7 2 7 . . . . 5 . Terminals 22 | . 7 . . 5 3 2 2 . . . . 3 . Fabricators 1 | . . . . . 1 . . . . . . . . Repair Stations 3 | . . . . . 1 . 1 . . . . 1 . Recycling Units 5 | . 2 . . . . . 3 . . . . . . Scanalyzers 2 | . . . . . 1 . 1 . . . . . . Garrison Access 3 | . . . 1 . 1 . . . . . . 1 . Total Hacks 96 | . 36 5 1 7 19 3 13 . . . . 12 . Successful 59 | . 24 5 1 4 10 2 4 . . . . 9 . Failed 37 | . 12 . . 3 9 1 9 . . . . 3 . Catastrophic 6 | . 1 . . . 1 . 3 . . . . 1 . Database Lockouts . | . . . . . . . . . . . . . . Manual 39 | . 19 . . . 11 . 5 . . . . 4 . Terminals 64 | . 32 . . 7 9 3 5 . . . . 8 . Fabricators 1 | . . . . . 1 . . . . . . . . Repair Stations 6 | . . . . . 2 . 1 . . . . 3 . Recycling Units 9 | . 4 . . . . . 5 . . . . . . Scanalyzers 8 | . . . . . 6 . 2 . . . . . . Garrison Access 3 | . . . 1 . 1 . . . . . . 1 . Terminal Hacks 28 | . 12 5 . 4 1 2 1 . . . . 3 . Record 4 | . . 4 . . . . . . . . . . . Part Schematic 1 | . 1 . . . . . . . . . . . . Robot Analysis 3 | . 3 . . . . . . . . . . . . Prototype ID Bank 3 | . 2 . . . . . . . . . . 1 . Emergency Access Points 2 | . . . . 1 . 1 . . . . . . . Terminal Index 2 | . . . . . 1 . . . . . . 1 . Alert Level 1 | . 1 . . . . . . . . . . . . Locate Traps 5 | . 4 . . . . . . . . . . 1 . Hauler Manifests 2 | . 1 . . . . . 1 . . . . . . Garrison Registry 1 | . . . . 1 . . . . . . . . . Patrol Navigation 2 | . . . . 1 . 1 . . . . . . . Security Stations 1 | . . . . 1 . . . . . . . . . Proto ID Catalog 1 | . . 1 . . . . . . . . . . . Fabricator Hacks . | . . . . . . . . . . . . . . Repair Station Hacks 2 | . . . . . . . . . . . . 2 . Scan Component 1 | . . . . . . . . . . . . 1 . Repair 1 | . . . . . . . . . . . . 1 . Recycling Unit Hacks 3 | . 2 . . . . . 1 . . . . . . Retrieve Components 3 | . 2 . . . . . 1 . . . . . . Scanalyzer 5 | . . . . . 5 . . . . . . . . Insert Component 1 | . . . . . 1 . . . . . . . . Analyze 4 | . . . . . 4 . . . . . . . . Garrison Access Hacks 3 | . . . 1 . 1 . . . . . . 1 . Unlock Access 3 | . . . 1 . 1 . . . . . . 1 . Unauthorized Hacks 18 | . 10 . . . 3 . 2 . . . . 3 . Terminals 15 | . 8 . . . 3 . 1 . . . . 3 . Assimilate 2 | . 1 . . . 1 . . . . . . . . Botnet 13 | . 7 . . . 2 . 1 . . . . 3 . Fabricators . | . . . . . . . . . . . . . . Repair Stations 1 | . . . . . . . 1 . . . . . . Mechanics 1 | . . . . . . . 1 . . . . . . Recycling Units 2 | . 2 . . . . . . . . . . . . Reject 1 | . 1 . . . . . . . . . . . . Tunnel 1 | . 1 . . . . . . . . . . . . Scanalyzers . | . . . . . . . . . . . . . . Garrison Access . | . . . . . . . . . . . . . . Data Cores Recovered . | . . . . . . . . . . . . . . Used . | . . . . . . . . . . . . . . Hacking Detections 29 | . 7 . . 4 6 2 7 . . . . 3 . Full Trace Events 1 | . . . . . 1 . . . . . . . . Feedback Events . | . . . . . . . . . . . . . . Feedback Blocked . | . . . . . . . . . . . . . . Robot Schematics Acquired 4 | . . . . . . . . . . 4 . . . Robots Built . | . . . . . . . . . . . . . . Authchips . | . . . . . . . . . . . . . . Time . | . . . . . . . . . . . . . . Total Robot Build Rating . | . . . . . . . . . . . . . . Part Schematics Acquired 17 | . 1 . . . 1 . . . . 15 . . . Parts Built . | . . . . . . . . . . . . . . Authchips . | . . . . . . . . . . . . . . Time . | . . . . . . . . . . . . . . Total Part Build Rating . | . . . . . . . . . . . . . . Parts Repaired 1 | . . . . . . . . . . . . 1 . Time 50 | . . . . . . . . . . . . 50 . Parts Recycled . | . . . . . . . . . . . . . . Recycled Matter . | . . . . . . . . . . . . . . Retrieved Matter . | . . . . . . . . . . . . . . Retrieved Components 6 | . 4 . . . . . 2 . . . . . . Parts Scanalyzed 1 | . . . . . 1 . . . . . . . . Part Schematics Acquired 1 | . . . . . 1 . . . . . . . . Parts Damaged . | . . . . . . . . . . . . . . Bothacking | -11 -10 -10 -8 -8 -7 -7 -6 -6 -6 -6 -5 -5 -5 ------------ Run | Yrd Mat Sub Mat Gar Fac Gar Fac Low Low Zio Pro Fac Gar Used RIF Installer 3 | . . . . 2 . 1 . . . . . . . Robot Detection 1 | . . . . . . 1 . . . . . . . Patrol Navigation 1 | . . . . 1 . . . . . . . . . Robots Hacked 21 | . . . . . 5 5 4 3 . . 2 2 . Non-combat 5 | . . . . . 2 1 2 . . . . . . Combat 16 | . . . . . 3 4 2 3 . . 2 2 . Robot Hacks Applied 28 | . . . . . 6 10 4 3 . . 3 2 . parse_system 1 | . . . . . . . 1 . . . . . . find_chute 1 | . . . . . . . 1 . . . . . . drop_inventory 1 | . . . . . 1 . . . . . . . . purge_threat 6 | . . . . . . 6 . . . . . . . block_reporting 1 | . . . . . 1 . . . . . . . . find_garrison 1 | . . . . . 1 . . . . . . . . amplify_resonance 3 | . . . . . . . 1 . . . 2 . . overwrite_iff 3 | . . . . . 1 . . 1 . . 1 . . streamctrl_high 2 | . . . . . . 2 . . . . . . . formatsys_high 9 | . . . . . 2 2 1 2 . . . 2 . Relay Couplers Released 27 | . . . . 10 . 13 . . . . . . 4 Machine Destruction 27 | . . . . 10 . 13 . . . . . . 4 Attached 19 | . . . . 1 3 7 2 1 . . 1 . 4 Fabnet Peak Effective % . | . . . . . . . . . . . . . . Robots Rewired 2 | . . . . . . . . . . . . . 2 Allies Hacked 1 | . . . . . . . 1 . . . . . . Hacks Repelled . | . . . . . . . . . . . . . . Allies | -11 -10 -10 -8 -8 -7 -7 -6 -6 -6 -6 -5 -5 -5 -------- Run | Yrd Mat Sub Mat Gar Fac Gar Fac Low Low Zio Pro Fac Gar Total Allies 17 | . 1 . . . 3 4 1 3 . . 1 2 2 Largest Group 3 | . 1 . . . 2 3 1 2 2 2 2 2 2 Highest-Rated Group 233 | . 10 . . . 64 64 32 76 58 58 58 98 233 Highest-Rated Ally 148 | . 10 . . . 32 32 32 47 29 29 29 49 148 Total Orders 9 | . 1 . . . . 8 . . . . . . . STAY 5 | . 1 . . . . 4 . . . . . . . FOLLOW 4 | . . . . . . 4 . . . . . . . Ally Attacks 71 | . . . . . 8 15 7 6 . . 11 7 17 Total Damage 2526 | . . . . . 295 495 156 115 . . 152 300 1013 Kills 12 | . . . . . 2 5 . . . . 5 . . Allies Corrupted 1 | . . . . . 1 . . . . . . . . Allies Melted 1 | . . . . . . . . . . . . . 1 Intel | -11 -10 -10 -8 -8 -7 -7 -6 -6 -6 -6 -5 -5 -5 ------- Run | Yrd Mat Sub Mat Gar Fac Gar Fac Low Low Zio Pro Fac Gar Active Infowar (turns) 11800 | 20 903 1682 175 955 606 298 1553 1046 877 447 920 457 1861 Optics 2318 | . . . . . . . . . . . . 457 1861 Sensors 5072 | . . . . . 217 7 1553 1046 875 145 778 451 . Terrain 439 | . . . . . . . . . . 293 142 . 4 Structural 1588 | . . 502 175 7 606 298 . . . . . . . Seismic 3735 | 20 903 1682 175 955 . . . . . . . . . Decoding 775 | . . . . . . . . . 667 108 . . . Machine Analysis 604 | . . . . . . . . . . . . 456 148 Jamming 169 | . . . . . . . . . . . . 18 151 ECM 184 | . . . . . . . . . . . . 184 . Robot Analysis Total 3 | . 3 . . . . . . . . . . . . Derelict Logs Recovered 7 | . . . . . . . . 2 1 2 2 . . Drone Launches . | . . . . . . . . . . . . . . Drone Recoveries . | . . . . . . . . . . . . . . Exploration | -11 -10 -10 -8 -8 -7 -7 -6 -6 -6 -6 -5 -5 -5 ------------- Run | Yrd Mat Sub Mat Gar Fac Gar Fac Low Low Zio Pro Fac Gar Turns Passed 15391 | 78 1457 1729 175 1845 692 2153 1587 1069 877 455 956 457 1861 Spaces Moved 9332 | 53 658 868 120 1004 427 1172 1176 853 719 355 699 331 897 Core 195 | 1 . . . . . . . . . . . . 194 Treads 1308 | . 408 483 . . . . . . . . . . 417 Legs 7412 | . . 385 120 1004 427 1172 1176 853 719 355 699 331 171 Wheels 302 | 52 250 . . . . . . . . . . . . Hover 115 | . . . . . . . . . . . . . 115 Flight . | . . . . . . . . . . . . . . Fastest Speed 50 | 50 100 130 130 125 123 120 120 120 120 120 120 120 50 Average Speed 136 | 99 161 191 130 135 123 142 120 120 120 120 120 120 142 Slowest Speed 370 | 100 240 240 130 200 123 190 120 120 120 120 120 120 370 Overloaded Moves . | . . . . . . . . . . . . . . Propulsion Burnouts . | . . . . . . . . . . . . . . Robots Hopped . | . . . . . . . . . . . . . . Potential Cave-ins 2 | . . . . . . . . . . . 2 . . Cave-ins Triggered . | . . . . . . . . . . . . . . Exploration Rate (%) 46 | 4 92 27 20 94 10 80 23 94 76 14 75 10 27 Regions Visited 13 Branch Regions 5 Pre-discovered Areas 3 | . 1 . . . . . . . 1 1 . . . Known Exits Taken 8 | . . . 1 . 1 . 1 1 1 1 1 1 . Unknown Exits Taken 3 | 1 1 1 . . . . . . . . . . . Scrap Searched 8 | . . . . . . . . 2 2 1 3 . . Spaces Dug 57 | . 6 . . 6 4 2 . 2 . . 2 8 27 Terrain Destroyed 255 | . 48 6 . 13 4 88 . 2 . . 5 8 81 Melee 42 | . . . . . 4 . . 2 . . 1 8 27 Projectile 14 | . . . . . . 4 . . . . 4 . 6 AOE 199 | . 48 6 . 13 . 84 . . . . . . 48 Terrain Rammed . | . . . . . . . . . . . . . . Walls Destroyed . | . . . . . . . . . . . . . . Machines Disabled . | . . . . . . . . . . . . . . Actions | -11 -10 -10 -8 -8 -7 -7 -6 -6 -6 -6 -5 -5 -5 --------- Run | Yrd Mat Sub Mat Gar Fac Gar Fac Low Low Zio Pro Fac Gar Total 11122 | 71 907 913 134 1288 554 1482 1304 889 729 384 803 382 1282 Wait 457 | . 41 . 4 50 42 74 34 14 4 3 77 11 103 Move 9322 | 52 657 867 120 1003 427 1171 1175 852 718 354 698 331 897 Hop . | . . . . . . . . . . . . . . Pick Up 188 | 8 25 8 2 31 12 24 16 4 . 6 2 8 42 Fast Attach 44 | 6 5 1 . 4 . 2 5 . . 3 1 3 14 Attach 61 | 1 2 3 2 11 3 6 6 1 . . 1 3 22 Detach 14 | . . . 1 2 . . 1 . . 3 . 2 5 Swap 160 | . 17 8 1 29 19 29 17 5 3 7 8 4 13 Drop 134 | 1 14 9 1 25 14 23 13 2 1 7 2 6 16 Fire 430 | 3 93 13 3 59 29 131 20 7 . . 10 6 56 Melee 204 | . 2 4 . 50 7 10 16 4 3 1 4 8 95 Ram . | . . . . . . . . . . . . . . Kick 2 | . . . . . . . . . . . . . 2 Crush 2 | . . . . . . . . . . . . . 2 Escape Stasis 27 | . . . . 10 . 12 . . . . . . 5 Rewire 12 | . . . . . 1 . 1 . . . . . 10 Trap 65 | . 51 . . 14 . . . . . . . . . Miscellaneous . | . . . . . . . . . . . . . . Route ------- -11/Scrapyard -10/Materials (discovered 4 exits: [*Mat x2] / [*Min] / *Sub) -10/Subcaves -8/Materials (discovered 2 exits: *Fac / Gar) -8/Garrison (discovered 3 exits: *Fac x3) -7/Factory (discovered 7 exits: Fac x4 / *Low x2 / Gar) -7/Garrison (discovered 2 exits: *Fac x2) -6/Factory -6/Lower Caves -6/Lower Caves (discovered 2 exits: *Fac / *Zio) -6/Zion -5/Proximity Caves -5/Factory (discovered 3 exits: *Ext x2 / Gar) -5/Garrison History --------- Turn | Location | Event 12 | -11/Scrapyard | Discovered new exit (range 16) 79 | -11/Scrapyard | Entered Materials 310 | -10/Materials | Build established: Mutant 729 | -10/Materials | Discovered new exit (range 8) 764 | -10/Materials | Discovered new exit (range 16) 911 | -10/Materials | Discovered new exit (range 16) 979 | -10/Materials | Core integrity fell below 50% 1449 | -10/Materials | Discovered new exit (range 7) 1536 | -10/Materials | Entered Subcaves 1575 | -10/Subcaves | Visited Clippyterm 1582 | -10/Subcaves | Learned 40 Factory zone layouts 1684 | -10/Subcaves | A swath of the cavern ceiling suddenly collapsed 2499 | -10/Subcaves | Discovered new exit (range 12) 2725 | -10/Subcaves | Visited 4L-MR0's lab 2757 | -10/Subcaves | Found Cargo Legs 2758 | -10/Subcaves | Attached Cargo Legs, gained temporary slots: Utility x2 3134 | -10/Subcaves | Shifting Twisted Machinery released Mak. Thermal Plating 3138 | -10/Subcaves | Shifting Twisted Machinery released Sub. Power Source 3265 | -10/Subcaves | Entered Materials 3265 | -8/Materials | Evolved 4 slots: Propulsion x1, Utility x3 3380 | -8/Materials | Discovered new exit (range 10) 3440 | -8/Materials | Identified exit to Garrison 3440 | -8/Materials | Entered Garrison 3450 | -8/Garrison | Triggered checkpoint 3528 | -8/Garrison | Triggered checkpoint 3786 | -8/Garrison | Triggered checkpoint 3867 | -8/Garrison | Build established: Scavenger-Mutant 3986 | -8/Garrison | Triggered checkpoint 4163 | -8/Garrison | Installed Relay Interface Framework 4186 | -8/Garrison | Garrison Relay disabled 4221 | -8/Garrison | Discovered new exit (range 3) 4252 | -8/Garrison | Garrison Relay disabled 4340 | -8/Garrison | Triggered checkpoint 4532 | -8/Garrison | Learned Factory security intel 4545 | -8/Garrison | Discovered new exit (range 5) 4591 | -8/Garrison | Garrison Relay disabled 4676 | -8/Garrison | Discovered new exit (range 33) 4676 | -8/Garrison | Discovered new exit (range 19) 4676 | -8/Garrison | Discovered new exit (range 70) 4868 | -8/Garrison | Triggered checkpoint 4908 | -8/Garrison | Build established: Bothacker-Mutant 5030 | -8/Garrison | Triggered checkpoint 5099 | -8/Garrison | Expanded RIF knowledge: Patrol Navigation 5285 | -8/Garrison | Entered Factory 5285 | -7/Factory | Evolved 2 slots: Propulsion x1, Utility x1 5286 | -7/Factory | Identified exit to Factory 5286 | -7/Factory | Identified exit to Lower Caves 5977 | -7/Factory | Identified exit to Garrison 5977 | -7/Factory | Entered Garrison 6043 | -7/Garrison | Triggered checkpoint 6254 | -7/Garrison | Garrison Relay disabled 6333 | -7/Garrison | Triggered checkpoint 6435 | -7/Garrison | Discovered exit to Factory (range 5) 6528 | -7/Garrison | Triggered checkpoint 6613 | -7/Garrison | Discovered exit to Factory (range 10) 6679 | -7/Garrison | Triggered checkpoint 6753 | -7/Garrison | Garrison Relay disabled 6891 | -7/Garrison | Triggered checkpoint 6978 | -7/Garrison | Expanded RIF knowledge: Robot Detection 7048 | -7/Garrison | Garrison Relay disabled 7114 | -7/Garrison | Phase Generator disabled 7197 | -7/Garrison | Triggered checkpoint 7955 | -7/Garrison | Heavy support dispatched to Factory 8130 | -7/Garrison | Entered Factory 8130 | -6/Factory | Accompanied by 1 ally 8130 | -6/Factory | Evolved 2 slots: Utility x2 8963 | -6/Factory | Discovered new exit (range 9) 8984 | -6/Factory | Identified exit to Lower Caves 9588 | -6/Factory | P-60 Hacker assimilated allied Soldier 5a 9628 | -6/Factory | Cargo convoy interrupted 9717 | -6/Factory | Entered Lower Caves 10225 | -6/Lower Caves | Learned Factory garrison access intel 10505 | -6/Lower Caves | Discovered new exit (range 5) 10508 | -6/Lower Caves | Identified exit to Lower Caves 10600 | -6/Lower Caves | Learned Factory emergency access door positions 10786 | -6/Lower Caves | Entered another Lower Caves area 10786 | -6/Lower Caves | Accompanied by 2 allies 10787 | -6/Lower Caves | Encountered a Warlord checkpoint 10869 | -6/Lower Caves | Discovered new exit (range 15) 10886 | -6/Lower Caves | Identified exit to Factory 11227 | -6/Lower Caves | Discovered new exit (range 10) 11237 | -6/Lower Caves | Identified exit to Zion 11663 | -6/Lower Caves | Entered Zion 11663 | -6/Zion | Accompanied by 2 allies 11726 | -6/Zion | System corruption cleaned by Quarantine Array 11751 | -6/Zion | Found Prototype Processor 11755 | -6/Zion | Found Prototype Hackware 11757 | -6/Zion | Found Prototype Processor 11757 | -6/Zion | Identified Exp. Terrain Scan Processor 11768 | -6/Zion | Found Prototype Processor 11768 | -6/Zion | Identified Exp. Melee Analysis Suite 11799 | -6/Zion | Discovered new exit (range 15) 11828 | -6/Zion | Learned location of Warlord (-5) 12035 | -6/Zion | Found Prototype Processor 12040 | -6/Zion | Found Prototype Processor 12040 | -6/Zion | Identified Exp. Target Analyzer (x2) 12114 | -6/Zion | Identified exit to Proximity Caves 12118 | -6/Zion | Entered Proximity Caves 12118 | -5/Proximity Caves | Accompanied by 2 allies 12160 | -5/Proximity Caves | Learned Factory emergency access door positions 12201 | -5/Proximity Caves | Spotter reported a threat 12208 | -5/Proximity Caves | Spotter reported a threat 12297 | -5/Proximity Caves | Lost 3 allies 12918 | -5/Proximity Caves | Learned 4 Factory zone layouts 12989 | -5/Proximity Caves | Discovered exit to Factory (range 16) 13074 | -5/Proximity Caves | Entered Factory 13074 | -5/Factory | Evolved 2 slots: Utility x2 13074 | -5/Factory | Identified Spectral Analyzer 13075 | -5/Factory | Identified exit to Extension 13078 | -5/Factory | Loaded intel: 4 garrison access locations 13216 | -5/Factory | Repaired Arm. Leg? 13311 | -5/Factory | Identified Exp. Hacking Suite 13402 | -5/Factory | Build established: Bothacker-Assassin 13404 | -5/Factory | Discovered exit to Extension (range 20) 13518 | -5/Factory | P-70 Sage assimilated allied Sentinel 6b 13531 | -5/Factory | Identified exit to Garrison 13531 | -5/Factory | Entered Garrison 13540 | -5/Garrison | Spotted B-90 Cyclops 13587 | -5/Garrison | Triggered checkpoint 13674 | -5/Garrison | Garrison Relay disabled 13778 | -5/Garrison | System corruption reached 10% 13823 | -5/Garrison | Lost 11 parts (5n5u1w) 14058 | -5/Garrison | Build established: Mutant 14263 | -5/Garrison | Core integrity fell below 50% 14298 | -5/Garrison | Lost 8 parts (1p4n2u1w) 14385 | -5/Garrison | Rewired B-75 Beast 14398 | -5/Garrison | Rewired B-90 Cyclops 14487 | -5/Garrison | Destroyed B-90 Cyclops 14809 | -5/Garrison | Build established: Scavenger-Mutant 14848 | -5/Garrison | Spotted B-75 Beast 14909 | -5/Garrison | Destroyed B-75 Beast 15283 | -5/Garrison | Core integrity fell below 20% 15392 | -5/Garrison | Destroyed by G-50 Soldier with Heavy Laser Last Messages --------------- 15322_ G-50 Soldier suffers critical hit (Destroy). 15322_ Destroyed Carbon-fiber Leg. 15324_ Arm. Heavy Treads destroyed. 15328_ Slug penetrates G-50 Soldier. 15329_ KE Penetrator destroyed. 15331_ ALERT: Garrison interior compromised. 15332_ Slug penetrates G-50 Soldier. 15332_ G-50 Soldier destroyed. 15335_ Gauss Rifle destroyed. 15338_ Lyr. Medium Armor Plating destroyed. 15339_ Phase Shifter destroyed. 15343_ System corrupted: Matter fused (-10). 15343_ Imp. Medium Treads destroyed. 15347_ Imp. Terrain Scanner destroyed. 15358_ System corrupted: Heat flow error (+210). 15364_ Imp. Cooling System destroyed. 15366_ Lyr. Medium Armor Plating destroyed. 15373_ System corrupted: Matter fused (-8). 15388_ ERO#MBFAAUS8ZNWXL#:H Map ----- +----------------------------------------------------+ | | | | | | | | | | | | | | | | | | | | | | | ?????????????????????????????????????????????????? | | ?????????????????????????????????????????????????? | | ?????????????????????????????????????????????????? | | ?????????????????????????????????????????????????? | | ????????????????###################??????????????? | | ????????????????#""""" """= """""#??????????????? | | ????????????????#"%""" """ " " "#??????????????? | | ????????????????#""! ![* !""#??????????????? | | ????????????????#""! * =""#??????????????? | | ????????????????#"" ""#??????????????? | | ???????######???# #??????????????? | | ???????#"# #???# ! #??????????????? | | ???????#"! #???#"" ] ""#??????????????? | | ???????# [ #???#""! ! ""#??????????????? | | ???????#" #???#"" @ ""#??????????????? | | ???????#"#^ #???# ! #??????????????? | | ???????### ###?# * #??????????????? | | ?????????#^^ #?#"" ! ""#??????????????? | | ?????????# #?##" ####????????????? | | ?????????# #??## ## #????????????? | | ?????????# ###???# sg # #????????????? | | ??######## #????######### ## # #????????????? | | ??# ##! %#* ######"####### ### ### #????????????? | | ??# # # # #????????????? | | ??# # #????????????? | | ??# ##+"######## #"# ##### # #????????????? | | ??######## #??????# #### # # #????????????? | | ?????????# #??????#####?### # # ###????????????? | | ?????????# #???????????????#### ;#?????????????? | | ?????????# #??????????????????# ##?????????????? | | ?????????# #??????????????????# ##?????????????? | | ?????????# #?????????????????## "#?????????????? | | ?????????# #?????????????????#" ##?????????????? | | ?????????# #?????????????????## ##?????????????? | | ?????????# #?????????????????## "#?????????????? | | ??????#### #?????????????????#" ##?????????????? | | ??????# # #?????????????????## "#?????????????? | | ??????# # #?????????????????## ##?????????????? | | ???####+## #?????????????????#" #??????????????? | +----------------------------------------------------+ Best States ------------- Heat Dissipation 94 Energy Generation 21 Energy Capacity 325 Matter Stores 300 Matter Capacity 300 Sight Range 24 Robot Scan Range 15 Terrain Scan Range 16 Terrain Scan Density 1010 ECM Strength 1 Jamming Range 14 Armor Coverage 1350 Resistance: TH 15 Phase Shifting 5 Evasion (%) 65 Targeting Accuracy 8 Melee Accuracy 12 Target Analysis 10 Recoil Reduction 4 Offensive Hacking 16 Defensive Hacking 12 Relay Coupler Types 4 Relay Coupler Value 136 Authchip Count 1 Item Schematics ----------------- Hcp. Storage Unit | -10/Materials | Hacked VSS Leg | -7/Factory | Scanalyzed Imp. Core Shielding | -6/Zion | Archive Neutrino Core | -6/Zion | Archive Angular Momentum Engine | -6/Zion | Archive Imp. Remote Datajack | -6/Zion | Archive Imp. System Restoration Module | -6/Zion | Archive Lrn. Proton Cannon | -6/Zion | Archive Hyp. Gauss Rifle | -6/Zion | Archive Centrium Wheel | -6/Zion | Archive Imp. Force Field | -6/Zion | Archive Imp. System Shield | -6/Zion | Archive Remote Force Field | -6/Zion | Archive Imp. Component Analysis Suite | -6/Zion | Archive Imp. Cryofiber Web | -6/Zion | Archive Lgt. Fission Core | -6/Zion | Archive Enh. Gauss Cannon | -6/Zion | Archive Robot Schematics ------------------ H-66 Slayer | -6/Zion | Archive Y-72 Warden | -6/Zion | Archive T-07 Excavator | -6/Zion | Archive M-22 Extractor | -6/Zion | Archive Fabricated ------------ Nothing Repaired ---------- Arm. Leg | 13% | -5/Factory Alien Tech Used ----------------- None Achievements -------------- None Challenges ------------ None Game ------ Seed ReflectiveMasterClaymores Manual? 0 Play Time 02:16:00 Cumulative 213.9 hours Start 2025.07.17 @ 14:17:15 End 2025.07.17 @ 16:39:15 Sessions 1 Manual Loads 0 Difficulty Rogue Special Mode None Game No. 138 Rogue 134 Adventurer 4 Explorer 0 Win Type - Total 7 Types 6/0/1/0/0/0/0/0/0/0 Lore% 80 Gallery% 69 Achievement% 60 Wizard Run 0 Options --------- Layout 1 ASCII 0 Keyboard 1 Movement Vi Keybinds 1 Fullscreen 2 Font 24/Smallcaps Map View 50x35 Zoom Use 0% Tactical HUD 1 Map Filters NONE Filters NONE Steam 1 RUN: 5db10412-7183-4c7d-9237-a62e298a5897